fUST/lending_fUST_20250505
["ID","MTS","AMOUNT","RATE_DAILY","PERIOD"]
[359937052,1746433850444,-841.22,0.00036986,14]
[359937053,1746433850454,-400.0,0.00036986,14]
[359937054,1746433850463,-400.0,0.00036986,14]
[359937055,1746433850473,-1966.66,0.00036986,14]
[359937056,1746433850482,-400.0,0.00036986,14]
[359937057,1746433850491,-400.0,0.00036986,14]
[359937058,1746433850501,-400.0,0.00036986,14]
[359937059,1746433850511,-1415.32,0.00036986,14]
[359937060,1746433850521,-312.72,0.00036986,14]
[359937061,1746433850531,-644.99,0.00036986,14]
[359937062,1746433850540,-400.0,0.00036986,14]
[359937063,1746433850550,-400.0,0.00036986,14]
[359937064,1746433850559,-448.9048385,0.00036986,14]
[359937065,1746433850568,-400.0,0.00036986,14]
[359937066,1746433850578,-1084.14,0.00036986,14]
[359937067,1746433850587,-1800.71,0.00036986,14]
[359937068,1746433850597,-400.0,0.00036986,14]
[359937069,1746433850607,-318.47016036,0.00036986,14]
[359937070,1746433851210,-327.18600585,0.000329,27]
[359937071,1746433851220,-327.18600561,0.00033176,28]
[359937072,1746433851229,-327.18600561,0.00033452,28]
[359937073,1746433851238,-327.18600561,0.00033728,29]
[359937074,1746433851247,-327.18600561,0.00034003,30]
[359937075,1746433851256,-327.18600561,0.00034279,30]
[359937076,1746433851265,-327.18600561,0.00034555,31]
[359937077,1746433851275,-327.18600561,0.00034831,31]
[359937078,1746433851285,-327.18600561,0.00035107,32]
[359937079,1746433851296,-327.18600561,0.00035383,32]
[359937080,1746433851306,-400.0,0.00035616,14]
[359937081,1746433851316,-400.0,0.00035616,14]
[359937082,1746433851325,-327.18600561,0.00035659,33]
[359937083,1746433851334,-400.0,0.0003589,14]
[359937084,1746433851344,-400.0,0.0003589,14]
[359937085,1746433851353,-327.18600561,0.00035934,33]
[359937086,1746433851363,-400.0,0.00036164,14]
[359937087,1746433851373,-400.0,0.00036164,14]
[359937088,1746433851382,-327.18600561,0.0003621,34]
[359937089,1746433851392,-400.0,0.00036438,14]
[359937090,1746433851401,-327.18600561,0.00036486,34]
[359937091,1746433851411,-400.0,0.00036712,14]
[359937092,1746433851421,-327.18600561,0.00036762,35]
[359937093,1746433851431,-125.08983964,0.00036986,14]
[359937094,1746433851442,-456.05,0.00036986,14]
[359937095,1746433851451,-1737.49650014,0.00036986,14]
[359937096,1746433851504,-515.22868577,0.00036986,14]
[359937097,1746433851515,-8.59481409,0.00036986,14]
[359937098,1746433851525,-765.98,0.00036986,14]
[359937099,1746433851534,-400.0,0.00036986,14]
[359937100,1746433851544,-1418.35,0.00036986,14]
[359937101,1746433851553,-400.0,0.00036986,14]
[359937102,1746433851563,-400.0,0.00036986,14]
[359937103,1746433851573,-400.0,0.00036986,14]
[359937104,1746433851583,-502.49,0.00036986,14]
[359937105,1746433851592,-540.69788067,0.00036986,14]
[359937106,1746433851604,-687.62910049,0.00036986,14]
[359937107,1746433851616,-532.2648,0.00036986,14]
[359937108,1746433851628,-416.25821884,0.00036986,14]
[359937109,1746433851637,-8001.81,0.00036986,14]
[359937110,1746433851647,-2550.52,0.00036986,14]
[359937111,1746433851656,-400.0,0.00036986,14]
[359937112,1746433851666,-400.0,0.00036986,14]
[359937113,1746433851675,-836.32,0.00036986,14]
[359937114,1746433851684,-497.19,0.00036986,14]
[359937115,1746433851693,-600.09,0.00036986,14]
[359937116,1746433851703,-3565.36,0.00036986,14]
[359937117,1746433851712,-400.0,0.00036986,14]
[359937118,1746433851721,-1085.65,0.00036986,14]
[359937119,1746433851730,-400.0,0.00036986,14]
[359937120,1746433851739,-477.90795316,0.00036986,14]
[359937121,1746433851750,-526.97,0.00036986,14]
[359937122,1746433851762,-2949.11204684,0.00036986,14]
[359937123,1746433851771,-400.0,0.00036986,14]
[359937124,1746433851780,-402.48699608,0.00036986,14]
[359937125,1746433851921,-400.0,0.00035616,14]
[359937126,1746433851932,-96.48300392,0.00036986,14]
[359937127,1746433851941,-59.74357307,0.00036986,14]
[359937129,1746433983695,-449.185718,0.00027397,2]
[359937130,1746433983717,-65.814282,0.00031219,2]
[359937140,1746434833122,-263.55532642,0.00027397,5]
[359937141,1746434833143,-68.36532073,0.00027532,2]
[359937142,1746434843217,-212.55888055,0.00027532,2]
[359937143,1746434843237,-349.6241429,0.00027632,2]
[359937144,1746434843262,-500.0,0.00028673,5]
[359937145,1746434843282,-500.0,0.00028673,5]
[359937146,1746434843301,-178.69064486,0.00028673,2]
[359937147,1746434843321,-164.4802,0.00028673,5]
[359937148,1746434843341,-500.0,0.00028673,5]
[359937149,1746434843362,-1200.0,0.00028691,2]
[359937150,1746434843382,-300.0,0.00028691,2]
[359937151,1746434843402,-300.0,0.00028692,2]
[359937152,1746434843421,-300.0,0.00028692,2]
[359937153,1746434843450,-300.0,0.00028692,2]
[359937154,1746434843476,-300.0,0.00028692,2]
[359937155,1746434843500,-500.0,0.00028692,2]
[359937156,1746434843523,-500.0,0.00028692,2]
[359937157,1746434843544,-500.0000914,0.00028692,2]
[359937158,1746434843565,-500.0,0.00028692,2]
[359937159,1746434843586,-500.89625763,0.00028692,2]
[359937160,1746434843607,-504.90576172,0.00028692,2]
[359937161,1746434843627,-500.0,0.00028692,2]
[359937162,1746434843648,-500.0,0.00028692,2]
[359937163,1746434843681,-500.0,0.00028692,2]
[359937164,1746434843704,-500.0,0.00028692,2]
[359937165,1746434843724,-240.44357942,0.00028692,2]
[359937166,1746434843745,-500.0,0.00028692,2]
[359937167,1746434843765,-500.0,0.00028692,2]
[359937168,1746434843796,-500.0,0.00028692,2]
[359937169,1746434843818,-500.0,0.00028692,2]
[359937170,1746434843839,-500.0,0.00028692,2]
[359937171,1746434843870,-500.0,0.00028692,2]
[359937172,1746434843893,-500.0,0.00028692,2]
[359937173,1746434843915,-500.0,0.00028692,2]
[359937174,1746434843936,-500.0,0.00028692,2]
[359937175,1746434843959,-500.0,0.00028692,2]
[359937176,1746434843993,-500.0,0.00028692,2]
[359937177,1746434844015,-500.0,0.00028692,2]
[359937178,1746434844039,-433.19560718,0.00028692,2]
[359937179,1746434844073,-500.0,0.00028692,2]
[359937180,1746434844094,-500.0,0.00028692,2]
[359937181,1746434844129,-500.0,0.00028692,2]
[359937182,1746434844150,-500.0,0.00028692,2]
[359937183,1746434844182,-500.0,0.00028692,2]
[359937184,1746434844205,-500.0,0.00028692,2]
[359937185,1746434844238,-500.0,0.00028692,2]
[359937186,1746434844265,-500.0,0.00028692,2]
[359937187,1746434844289,-500.0,0.00028692,2]
[359937188,1746434844330,-500.0,0.00028692,2]
[359937189,1746434844352,-500.0,0.00028692,2]
[359937190,1746434844374,-500.0,0.00028692,2]
[359937191,1746434844408,-500.0,0.00028692,2]
[359937192,1746434844429,-160.96714532,0.00028692,2]
[359937193,1746434844461,-500.0,0.00028692,2]
[359937194,1746434844492,-500.0,0.00028692,2]
[359937195,1746434844514,-500.0,0.00028692,2]
[359937196,1746434844544,-500.0,0.00028692,2]
[359937197,1746434844575,-500.0,0.00028692,2]
[359937198,1746434844608,-500.0,0.00028692,2]
[359937199,1746434844641,-500.0,0.00028692,2]
[359937200,1746434844671,-500.0,0.00028692,2]
[359937201,1746434844702,-500.0,0.00028692,2]
[359937202,1746434844731,-500.0,0.00028692,2]
[359937203,1746434844762,-500.0,0.00028692,2]
[359937204,1746434844794,-500.0,0.00028692,2]
[359937205,1746434844824,-500.0,0.00028692,2]
[359937206,1746434844854,-500.0,0.00028692,2]
[359937207,1746434844884,-500.0,0.00028692,2]
[359937208,1746434844916,-500.0,0.00028692,2]
[359937209,1746434844947,-500.0,0.00028692,2]
[359937210,1746434844978,-500.0,0.00028692,2]
[359937211,1746434845014,-500.0,0.00028692,2]
[359937212,1746434845045,-500.0,0.00028692,2]
[359937213,1746434845076,-500.0,0.00028692,2]
[359937214,1746434845108,-500.0,0.00028692,2]
[359937215,1746434845137,-500.0,0.00028692,2]
[359937216,1746434845167,-500.0,0.00028692,2]
[359937217,1746434845196,-500.0,0.00028692,2]
[359937218,1746434845228,-148.26411319,0.00028692,2]
[359937219,1746434848137,-227.35098289,0.00028692,2]
[359937220,1746434849105,-124.38490392,0.00028692,2]
[359937221,1746434849133,-500.0,0.00028692,2]
[359937222,1746434849158,-500.0,0.00028692,2]
[359937223,1746434849185,-500.0,0.00028692,2]
[359937224,1746434849212,-500.0,0.00028692,2]
[359937225,1746434849237,-500.0,0.00028692,2]
[359937226,1746434849266,-500.0,0.00028692,2]
[359937227,1746434849438,-500.0,0.00028692,2]
[359937228,1746434849467,-500.0,0.00028692,2]
[359937229,1746434849495,-500.0,0.00028692,2]
[359937230,1746434849523,-500.0,0.00028692,2]
[359937231,1746434849552,-500.0,0.00028692,2]
[359937232,1746434849579,-500.0,0.00028692,2]
[359937233,1746434849606,-500.0,0.00028692,2]
[359937234,1746434849631,-500.0,0.00028692,2]
[359937235,1746434849657,-500.0,0.00028692,2]
[359937236,1746434849682,-500.0,0.00028692,2]
[359937237,1746434849708,-500.0,0.00028692,2]
[359937238,1746434849735,-500.0,0.00028692,2]
[359937239,1746434849760,-500.0,0.00028692,2]
[359937240,1746434849787,-500.0,0.00028692,2]
[359937241,1746434849814,-500.0,0.00028692,2]
[359937242,1746434849839,-500.0,0.00028692,2]
[359937243,1746434849866,-500.0,0.00028692,2]
[359937244,1746434849892,-500.0,0.00028692,2]
[359937245,1746434849920,-500.0,0.00028692,2]
[359937246,1746434849948,-500.0,0.00028692,2]
[359937247,1746434849974,-500.0,0.00028692,2]
[359937248,1746434850000,-500.0,0.00028692,2]
[359937249,1746434850028,-55.56006466,0.00028692,2]
[359937257,1746434956268,-776.74785,0.00027247,2]
[359937258,1746434956289,-156.94006954,0.00027297,2]
[359937259,1746434956309,-472.051688,0.00027397,2]
[359937260,1746434956329,-167.611452,0.00027414,2]
[359937261,1746434956353,-389.36725217,0.00028594,2]
[359937262,1746434956375,-300.0,0.00028691,2]
[359937263,1746434956396,-31217.84241584,0.00028692,2]
[359937264,1746434956427,-403.60818451,0.00028692,2]
[359937265,1746434956454,-500.0,0.00028692,2]
[359937266,1746434956479,-500.0,0.00028692,2]
[359937267,1746434956506,-500.0,0.00028692,2]
[359937268,1746434956531,-500.00000001,0.00028692,2]
[359937269,1746434956552,-174.20043116,0.00028692,2]
[359937270,1746434956572,-343.24700615,0.00028692,2]
[359937271,1746434956591,-24900.0,0.00028694,2]
[359937272,1746434956611,-500.0,0.000287,5]
[359937273,1746434956629,-1548.1194951,0.00029347,2]
[359937274,1746434956649,-185.406427,0.00029436,120]
[359937275,1746434956669,-500.0,0.00029467,5]
[359937276,1746434956690,-331.29264175,0.000299,21]
[359937277,1746434956709,-278.00394718,0.00030194,2]
[359937278,1746434956729,-562.42938887,0.00030194,2]
[359937279,1746434956751,-331.29264166,0.00030279,22]
[359937280,1746434956770,-389.3672521,0.00030287,2]
[359937281,1746434956791,-716.983126,0.00030294,2]
[359937282,1746434956815,-331.29264166,0.00030659,23]
[359937283,1746434956836,-420.0,0.00030964,2]
[359937284,1746434956856,-300.0,0.00030965,2]
[359937285,1746434956876,-263.07852119,0.00030965,2]
[359937303,1746435033566,-155.0,0.00027552,2]
[359937304,1746435033576,-400.0,0.00030999,2]
[359937305,1746435033586,-1600.0,0.00030999,2]
[359937306,1746435033596,-349.0,0.00030999,2]
[359937307,1746435033606,-1506.44738046,0.00031,2]
[359937308,1746435033633,-1952.94778537,0.00031,2]
[359937309,1746435033643,-500.0,0.00031,2]
[359937310,1746435033652,-500.0,0.00031,5]
[359937311,1746435033662,-331.29264166,0.00031038,24]
[359937312,1746435033672,-841.77443764,0.00031309,2]
[359937313,1746435033682,-331.29264166,0.00031417,24]
[359937314,1746435033691,-157.6,0.00031417,2]
[359937315,1746435033702,-179.9820018,0.00031643,7]
[359937316,1746435033711,-331.29264166,0.00031797,25]
[359937317,1746435033721,-167.611452,0.0003198,2]
[359937318,1746435033731,-331.29264166,0.00032176,26]
[359937319,1746435033740,-158.0,0.00032329,3]
[359937320,1746435033750,-331.29264166,0.00032555,27]
[359937321,1746435033759,-331.29264166,0.00032934,27]
[359937322,1746435033769,-276.0,0.00033165,2]
[359937323,1746435033778,-472.051688,0.00033165,2]
[359937324,1746435033787,-331.29264166,0.00033314,28]
[359937325,1746435033796,-560.0,0.00033376,2]
[359937326,1746435033806,-331.29264166,0.00033693,29]
[359937327,1746435033815,-331.29264166,0.00034072,30]
[359937328,1746435033824,-151.0,0.0003435,2]
[359937329,1746435033834,-207.4,0.0003435,2]
[359937330,1746435033843,-331.29264166,0.00034452,30]
[359937331,1746435033852,-331.29264166,0.00034831,31]
[359937332,1746435033862,-154.15932057,0.00035,60]
[359937333,1746435033871,-500.0,0.00035,4]
[359937334,1746435033880,-331.29264166,0.0003521,32]
[359937335,1746435033890,-174.1485186,0.00035478,2]
[359937336,1746435033899,-8687.16782248,0.00035496,3]
[359937337,1746435033909,-361.70045854,0.00035496,3]
[359937338,1746435033919,-160.0,0.00035496,3]
[359937339,1746435033934,-240.27290431,0.00035504,7]
[359937340,1746435033943,-64348.58435802,0.00035505,2]
[359937341,1746435033956,-3508.39705277,0.00035505,2]
[359937349,1746435038641,-500.0,0.00035495,7]
[359937350,1746435038651,-145.90612149,0.00035495,7]
[359937351,1746435038817,-25.26122032,0.00035495,7]
[359937352,1746435039742,-299.9930559,0.00035495,7]
[359937353,1746435039752,-628.99634948,0.00035495,7]
[359937354,1746435039762,-500.0,0.00035495,7]
[359937355,1746435039772,-146.56003557,0.00035495,7]
[359937363,1746435040980,-189.26437259,0.00035495,7]
[359937364,1746435040990,-500.0,0.00035495,7]
[359937365,1746435041001,-500.0,0.00035495,7]
[359937366,1746435041011,-500.0,0.00035495,7]
[359937367,1746435041021,-500.0,0.00035495,7]
[359937368,1746435041031,-500.0,0.00035495,7]
[359937369,1746435041045,-93524.59690509,0.00035505,2]
[359937393,1746435044006,-271.70092175,0.00035505,2]
[359937449,1746435046906,-43183.51581901,0.00035505,2]
[359937483,1746435047215,-36.8800719,0.00035505,2]
[359937627,1746435903156,158.0,0.00018,90]
[359937629,1746436044122,-272.76382082,0.00024953,120]
[359937630,1746436150127,-2364.75716022,0.00024953,10]
[359937631,1746436150148,-240.79217252,0.00027297,2]
[359937632,1746436150169,-457.298419,0.00027397,2]
[359937633,1746436150190,-167.611452,0.00031398,2]
[359937634,1746436150213,-460.13840409,0.000319,25]
[359937635,1746436150236,-89.42564101,0.0003221,26]
[359937654,1746436231824,-10497.2563462,0.00032166,2]
[359937655,1746436231930,-7116.9252019,0.00032166,2]
[359937656,1746436231942,-2462.9131946,0.00032166,2]
[359937658,1746436232011,-13623.11279582,0.00032166,2]
[359937704,1746436238132,-30.3070912,0.00032165,2]
[359937715,1746436238230,-228.92673565,0.00032165,2]
[359937718,1746436238241,-444.70580919,0.00032165,2]
[359937720,1746436238250,-495.50299611,0.00032165,2]
[359937722,1746436238259,-500.0,0.00032165,2]
[359937724,1746436238268,-500.0,0.00032165,2]
[359937726,1746436238278,-500.0,0.00032165,2]
[359937728,1746436238287,-500.0,0.00032165,2]
[359937730,1746436238298,-500.0,0.00032165,2]
[359937732,1746436238307,-223.13940664,0.00032165,2]
[359937734,1746436238316,-189022.79200148,0.00032166,2]
[359937736,1746436238325,-1945.7048933,0.00032166,2]
[359937738,1746436238335,-500.0,0.00032877,7]
[359937741,1746436238345,-584.46044882,0.00032877,7]
[359937743,1746436238356,-349.91199308,0.000329,2]
[359937745,1746436238365,-504.09662776,0.00032973,5]
[359937747,1746436238375,-500.0,0.00032973,5]
[359937749,1746436238385,-506.31748841,0.00032973,5]
[359937751,1746436238394,-300.0,0.00032997,3]
[359937753,1746436238403,-400.0,0.00032998,2]
[359937755,1746436238413,-2000.0,0.00033,14]
[359937757,1746436238422,-1352.0,0.00033,14]
[359937759,1746436238431,-457.298419,0.00033165,2]
[359937761,1746436238441,-352.9345131,0.00033179,2]
[359937763,1746436238450,-250.0,0.00033279,2]
[359937765,1746436238460,-160.0,0.00033395,2]
[359937767,1746436238470,-24900.0,0.00033403,2]
[359937769,1746436238480,-1066.91751448,0.00033405,2]
[359937771,1746436238489,-3359.3391469,0.00033418,2]
[359937773,1746436238500,-5000.0,0.00033465,2]
[359937775,1746436238509,-500.0,0.000335,2]
[359937777,1746436238519,-500.0,0.000335,5]
[359937779,1746436238528,-207.4,0.0003375,2]
[359937781,1746436238538,-441.81960249,0.000339,29]
[359937783,1746436238547,-160.0,0.00033918,3]
[359937785,1746436238557,-349.91199307,0.00033979,2]
[359937787,1746436238567,-489.698509,0.00034008,2]
[359937789,1746436238576,-441.81960246,0.00034141,30]
[359937791,1746436238586,-441.81960246,0.00034383,30]
[359937793,1746436238595,-544.78529576,0.00034529,2]
[359937795,1746436238604,-441.81960246,0.00034624,31]
[359937797,1746436238615,-441.81960246,0.00034866,31]
[359937799,1746436238624,-160.0,0.00035009,4]
[359937801,1746436238634,-349.91199307,0.00035058,2]
[359937803,1746436238644,-544.78529576,0.00035063,2]
[359937805,1746436238654,-441.81960246,0.00035107,32]
[359937807,1746436238663,-215.0738,0.00035119,2]
[359937809,1746436238674,-544.78529577,0.00035197,2]
[359937811,1746436238684,-174.1485186,0.00035296,2]
[359937813,1746436238693,-200.13432905,0.00035306,2]
[359937815,1746436238704,-441.81960246,0.00035348,32]
[359937817,1746436238714,-3909.22552012,0.00035385,3]
[359937819,1746436238723,-573.14739552,0.00035385,3]
[359937821,1746436238733,-19546.1276006,0.00035386,3]
[359937824,1746436238742,-2865.7369776,0.00035386,3]
[359937825,1746436238751,-160.0,0.00035386,3]
[359937827,1746436238761,-12607.13495863,0.00035386,3]
[359937830,1746436238771,-160.0,0.00035386,3]
[359937832,1746436238780,-421.83547488,0.00035386,3]
[359937834,1746436238791,-182.23035355,0.00035386,3]
[359937835,1746436238800,-840.86534548,0.00035386,3]
[359937836,1746436238809,-890.92,0.00035386,3]
[359937837,1746436238819,-31273.804161,0.00035394,3]
[359937838,1746436238828,-4585.17916416,0.00035394,3]
[359937839,1746436238838,-3909.22552012,0.00035394,3]
[359937840,1746436238847,-573.14739552,0.00035394,3]
[359937841,1746436238856,-19546.1276006,0.00035396,3]
[359937842,1746436238865,-2865.7369776,0.00035396,3]
[359937843,1746436238874,-55300.49078385,0.00035405,3]
[359937844,1746436238883,-376219.76836462,0.00035405,2]
[359937845,1746436238892,-20607.24616464,0.00035406,2]
[359937978,1746437294840,785.42130864,0.000125,2]
[359937979,1746437323678,-462.17790059,0.000189,2]
[359937986,1746437328405,-249.1004424,0.000189,2]
[359937987,1746437328428,-207.14174076,0.00022,2]
[359937989,1746437333930,-177.00324184,0.00022,2]
[359937990,1746437336584,-211.04107581,0.00022,2]
[359937991,1746437339852,-152.0,0.00022,2]
[359937992,1746437346771,-163.048207,0.00021999,2]
[359937993,1746437350130,-136.951793,0.00021999,2]
[359937994,1746437350152,-159.55783364,0.00022,2]
[359937996,1746437355315,-159.21582044,0.00022,2]
[359937997,1746437357325,-15212.04028751,0.00022,2]
[359937998,1746437357362,-441.52222493,0.000239,2]
[359937999,1746437357390,-269.75611806,0.000239,2]
[359938000,1746437357410,-247.0,0.00023906,2]
[359938001,1746437357429,-1146.03237043,0.00024,34]
[359938002,1746437357452,-172.38951108,0.00025,120]
[359938003,1746437357472,-361.21567304,0.000252,2]
[359938004,1746437362153,-174.93605871,0.00027,2]
[359938005,1746437365111,-165.0823511,0.00027,2]
[359938006,1746437365131,-4.40678619,0.00027236,2]
[359938007,1746437365160,-737.96399521,0.00027236,2]
[359938008,1746437365180,-484.920753,0.00027334,2]
[359938009,1746437365201,-434.027863,0.00027397,2]
[359938010,1746437365223,-737.91758214,0.000279,18]
[359938011,1746437365243,-313.81875325,0.00028,10]
[359938012,1746437365263,-2839.93798633,0.00028,2]
[359938013,1746437365282,-40161.76534835,0.00028,2]
[359938014,1746437365303,-737.91758213,0.00028348,18]
[359938015,1746437365324,-737.91758213,0.00028797,19]
[359938016,1746437365342,-1818.96190379,0.00029,10]
[359938017,1746437365361,-12121.61211324,0.000292,10]
[359938018,1746437365382,-737.91758213,0.00029245,20]
[359938019,1746437365404,-737.91758213,0.00029693,21]
[359938020,1746437365425,-737.91758213,0.00030141,22]
[359938021,1746437365446,-200.0,0.00030248,15]
[359938022,1746437365465,-648.01,0.00030292,3]
[359938023,1746437365486,-324.01,0.00030292,3]
[359938024,1746437365506,-162.0,0.00030292,3]
[359938025,1746437365528,-787.70567249,0.00030293,2]
[359938026,1746437365549,-500.0,0.00030302,2]
[359938027,1746437365569,-500.0,0.00030302,2]
[359938028,1746437365597,-500.0,0.00030302,2]
[359938029,1746437365617,-500.0,0.00030302,2]
[359938030,1746437365637,-500.0,0.00030302,2]
[359938031,1746437365657,-500.0,0.00030302,2]
[359938032,1746437365676,-348.46529431,0.00030302,2]
[359938033,1746437365695,-500.0,0.00030302,2]
[359938034,1746437365715,-500.0,0.00030302,2]
[359938035,1746437365735,-500.0,0.00030302,2]
[359938036,1746437365761,-500.0,0.00030302,2]
[359938037,1746437365781,-500.0,0.00030302,2]
[359938038,1746437365803,-500.0,0.00030302,2]
[359938039,1746437365829,-500.0,0.00030302,2]
[359938040,1746437365850,-500.0,0.00030302,2]
[359938041,1746437365873,-500.0,0.00030302,2]
[359938042,1746437365897,-500.0,0.00030302,2]
[359938043,1746437365928,-500.0,0.00030302,2]
[359938044,1746437365949,-500.0,0.00030302,2]
[359938045,1746437365972,-500.0,0.00030302,2]
[359938046,1746437365995,-500.0,0.00030302,2]
[359938047,1746437366024,-500.0,0.00030302,2]
[359938048,1746437366045,-500.0,0.00030302,2]
[359938049,1746437366064,-500.0,0.00030302,2]
[359938050,1746437366085,-500.0,0.00030302,2]
[359938051,1746437366107,-500.0,0.00030302,2]
[359938052,1746437366135,-500.0,0.00030302,2]
[359938053,1746437366156,-500.0,0.00030302,2]
[359938054,1746437366181,-500.0,0.00030302,2]
[359938055,1746437366201,-500.0,0.00030302,2]
[359938056,1746437366230,-500.0,0.00030302,2]
[359938057,1746437366250,-500.0,0.00030302,2]
[359938058,1746437366273,-500.0,0.00030302,2]
[359938059,1746437366293,-500.0,0.00030302,2]
[359938060,1746437366322,-500.0,0.00030302,2]
[359938061,1746437366343,-500.0,0.00030302,2]
[359938062,1746437366363,-327.51142639,0.00030302,2]
[359938063,1746437366384,-500.0,0.00030302,2]
[359938064,1746437366413,-500.0,0.00030302,2]
[359938065,1746437366436,-500.0,0.00030302,2]
[359938066,1746437366468,-500.0,0.00030302,2]
[359938067,1746437366490,-500.0,0.00030302,2]
[359938068,1746437366520,-500.0,0.00030302,2]
[359938069,1746437366541,-500.0,0.00030302,2]
[359938070,1746437366706,-500.0,0.00030302,2]
[359938071,1746437366735,-500.0,0.00030302,2]
[359938072,1746437366760,-500.0,0.00030302,2]
[359938073,1746437366788,-500.0,0.00030302,2]
[359938074,1746437366810,-15.7211566,0.00030302,2]
[359938105,1746437432138,-182.23035355,0.000292,10]
[359938106,1746437432148,-160.0,0.00029994,2]
[359938107,1746437432158,-486.04,0.00030292,3]
[359938108,1746437432167,-400.0,0.00030301,2]
[359938109,1746437432177,-484.2788434,0.00030302,2]
[359938110,1746437432186,-500.0,0.00030302,2]
[359938111,1746437432196,-500.0,0.00030302,2]
[359938112,1746437432205,-500.0,0.00030302,2]
[359938113,1746437432214,-500.0,0.00030302,2]
[359938114,1746437432223,-500.0,0.00030302,2]
[359938115,1746437432233,-500.0,0.00030302,2]
[359938116,1746437432242,-500.0,0.00030302,2]
[359938117,1746437432252,-500.0,0.00030302,2]
[359938118,1746437432261,-500.0,0.00030302,2]
[359938119,1746437432271,-200.0,0.00030302,2]
[359938120,1746437432280,-500.0,0.00030302,2]
[359938121,1746437432289,-500.0,0.00030302,2]
[359938122,1746437432298,-500.0,0.00030302,2]
[359938123,1746437432308,-500.0,0.00030302,2]
[359938124,1746437432318,-500.0,0.00030302,2]
[359938125,1746437432327,-500.0,0.00030302,2]
[359938126,1746437432336,-500.0,0.00030302,2]
[359938127,1746437432345,-500.0,0.00030302,2]
[359938128,1746437432355,-500.0,0.00030302,2]
[359938129,1746437432364,-500.0,0.00030302,2]
[359938130,1746437432374,-500.0,0.00030302,2]
[359938131,1746437432384,-500.0,0.00030302,2]
[359938132,1746437432394,-500.0,0.00030302,2]
[359938133,1746437432403,-500.0,0.00030302,2]
[359938134,1746437432412,-500.0,0.00030302,2]
[359938135,1746437432422,-500.0,0.00030302,2]
[359938136,1746437432431,-500.0,0.00030302,2]
[359938137,1746437432440,-500.0,0.00030302,2]
[359938138,1746437432450,-500.0,0.00030302,2]
[359938139,1746437432460,-500.0,0.00030302,2]
[359938140,1746437432472,-500.0,0.00030302,2]
[359938141,1746437432482,-625.84145469,0.00030302,2]
[359938142,1746437432491,-500.0,0.00030302,2]
[359938143,1746437432501,-500.0,0.00030302,2]
[359938144,1746437432511,-500.0,0.00030302,2]
[359938145,1746437432520,-500.0,0.00030302,2]
[359938146,1746437432529,-500.0,0.00030302,2]
[359938147,1746437432539,-500.0,0.00030302,2]
[359938148,1746437432550,-155.16996557,0.00030302,2]
[359938149,1746437432559,-500.0,0.00030302,2]
[359938150,1746437432569,-500.0,0.00030302,2]
[359938151,1746437432578,-1404.74219349,0.00030302,2]
[359938152,1746437432587,-500.0,0.00030302,2]
[359938153,1746437432597,-1404.74219349,0.00030302,2]
[359938154,1746437432606,-500.0,0.00030302,2]
[359938155,1746437432615,-500.0,0.00030302,2]
[359938156,1746437432625,-1404.74219349,0.00030302,2]
[359938157,1746437432634,-1404.74219349,0.00030302,2]
[359938158,1746437432644,-500.0,0.00030302,2]
[359938159,1746437432652,-500.0,0.00030302,2]